bitfinex-derivatives/quotes_BTCF0:USTF0_20251115
["timestamp","ask_amount","ask_price","bid_price","bid_amount"]
[1763214776717,0.01397594,96194.0,96184.0,0.001]
[1763214776915,0.04333,96185.0,96184.0,0.0226]
[1763214777512,0.04333,96185.0,96184.0,0.04395]
[1763214778109,0.04333,96185.0,96184.0,0.05456]
[1763214778512,0.04333,96185.0,96184.0,0.04495]
[1763214778715,0.04333,96185.0,96184.0,0.04395]
[1763214778908,0.04333,96185.0,96184.0,0.04495]
[1763214779418,0.04333,96185.0,96184.0,0.0236]
[1763214779814,0.04333,96185.0,96184.0,0.04511]
[1763214780409,0.04333,96185.0,96184.0,0.02495]
[1763214780613,0.04333,96185.0,96184.0,0.04646]
[1763214782822,0.01397594,96194.0,96193.0,0.04446]
[1763214782823,0.04523594,96194.0,96193.0,0.04446]
[1763214783017,0.00015594,96194.0,96193.0,0.04446]
[1763214784020,0.00015594,96194.0,96193.0,0.04546]
[1763214785223,0.02318594,96194.0,96193.0,0.04546]
[1763214785421,0.00015594,96194.0,96193.0,0.04646]
[1763214787820,0.02318594,96194.0,96193.0,0.04646]
[1763214788627,0.00015594,96194.0,96193.0,0.04646]
[1763214789322,0.3608,96218.0,96193.0,0.04646]
[1763214789523,0.04508,96211.0,96210.0,0.04519267]
[1763214791124,0.40588,96218.0,96217.0,0.04446]
[1763214791326,0.3608,96218.0,96217.0,0.04446]
[1763214791825,0.00235397,96220.0,96219.0,0.04408]
[1763214792633,0.02531397,96220.0,96219.0,0.04408]
[1763214793120,0.04666397,96220.0,96219.0,0.04408]
[1763214794823,0.04666397,96220.0,96219.0,0.02218]
[1763214795030,0.04431,96209.0,96208.0,0.05537]
[1763214795223,0.04431,96209.0,96208.0,0.04408]
[1763214795424,0.04431,96209.0,96208.0,0.05475]
[1763214796219,0.02296,96209.0,96208.0,0.05475]
[1763214796423,0.04446594,96220.0,96219.0,0.04408]
[1763214796731,0.04666397,96220.0,96219.0,0.04408]
[1763214797637,0.04431,96209.0,96208.0,0.04408]
[1763214799524,0.04431,96209.0,96208.0,0.05765]
[1763214800635,0.00219803,96210.0,96209.0,0.04408]
[1763214800935,0.04446594,96220.0,96219.0,0.04408]
[1763214801230,0.04666397,96220.0,96219.0,0.04408]
[1763214806833,0.00015594,96220.0,96219.0,0.04408]
[1763214810733,0.04991,96236.0,96235.0,0.04521]
[1763214812136,0.05191,96236.0,96235.0,0.04521]
[1763214813338,0.05191,96236.0,96235.0,0.02221]
[1763214813541,0.05191,96236.0,96235.0,0.04521]
[1763214822742,0.05191,96236.0,96230.0,0.36153267]
[1763214822743,0.04491,96231.0,96230.0,0.04594267]
[1763214822941,0.04491,96231.0,96230.0,0.00073267]
[1763214823140,0.04491,96231.0,96230.0,0.04594267]
[1763214823948,0.04591,96231.0,96230.0,0.04594267]
[1763214824142,0.04691,96231.0,96230.0,0.04594267]
[1763214824344,0.002,96231.0,96230.0,0.04594267]
[1763214828549,0.04691,96231.0,96230.0,0.04594267]
[1763214829257,0.02371,96231.0,96230.0,0.04594267]
[1763214829556,0.02271,96231.0,96230.0,0.04694267]
[1763214829756,0.001,96231.0,96230.0,0.04694267]
[1763214829956,0.005,96236.0,96235.0,0.0586]
[1763214830158,0.005,96236.0,96235.0,0.4194]
[1763214831253,0.04991,96236.0,96235.0,0.4194]
[1763214832255,0.02671,96236.0,96235.0,0.4194]
[1763214834553,0.005,96236.0,96235.0,0.4194]
[1763214837064,0.04991,96236.0,96235.0,0.4194]
[1763214837557,0.02671,96236.0,96235.0,0.4194]
[1763214837756,0.005,96236.0,96235.0,0.4194]
[1763214841262,0.05051,96236.0,96235.0,0.4194]
[1763214841463,0.02738,96236.0,96235.0,0.4194]
[1763214841866,0.05051,96236.0,96235.0,0.4194]
[1763214842269,0.02738,96236.0,96235.0,0.4194]
[1763214842655,0.005,96236.0,96235.0,0.4194]
[1763214845963,0.005,96276.0,96235.0,0.4194]
[1763214845964,0.005,96276.0,96275.0,0.05898]
[1763214846766,0.005,96276.0,96275.0,0.02233]
[1763214846767,0.05051,96276.0,96275.0,0.02233]
[1763214846960,0.05051,96276.0,96275.0,0.04565]
[1763214850070,0.05151,96276.0,96275.0,0.04565]
[1763214850260,0.007,96276.0,96275.0,0.04565]
[1763214851371,0.05193,96276.0,96275.0,0.04565]
[1763214851570,0.00025964,96286.0,96285.0,0.05693]
[1763214852075,0.02298964,96286.0,96285.0,0.05693]
[1763214852264,0.00025964,96286.0,96285.0,0.05693]
[1763214852572,0.02298964,96286.0,96285.0,0.05693]
[1763214853167,0.00125964,96286.0,96285.0,0.05693]
[1763214853973,0.00225964,96286.0,96285.0,0.05693]
[1763214855870,0.02773,96316.0,96315.0,0.04392]
[1763214856070,0.005,96316.0,96315.0,0.40472]
[1763214856976,0.007,96316.0,96315.0,0.40472]
[1763214857474,0.3658,96356.0,96325.0,0.04392]
[1763214857686,0.05845,96352.0,96351.0,0.02135]
[1763214857875,0.04493,96351.0,96350.0,0.00219803]
[1763214858067,0.04493,96351.0,96328.0,0.0065]
[1763214858068,0.04493,96327.0,96326.0,0.04392]
[1763214858373,0.04493,96318.0,96317.0,0.00015568]
[1763214858574,0.40573,96318.0,96317.0,0.00015568]
[1763214858772,0.40573,96318.0,96317.0,0.04407568]
[1763214858968,0.40573,96327.0,96326.0,0.04392]
[1763214859377,0.02273,96327.0,96326.0,0.04392]
[1763214859675,0.01352,96360.0,96320.0,0.37381]
[1763214859676,0.04993,96356.0,96355.0,0.04392]
[1763214861276,0.04493,96351.0,96350.0,0.04611803]
[1763214862179,0.005,96356.0,96355.0,0.04392]
[1763214862180,0.04993,96356.0,96355.0,0.04392]
[1763214862375,0.05093,96356.0,96355.0,0.04392]
[1763214862986,0.005,96356.0,96355.0,0.04392]
[1763214863181,0.04993,96356.0,96355.0,0.04392]
[1763214863473,0.005,96356.0,96355.0,0.04392]
[1763214863681,0.006,96356.0,96355.0,0.40472]
[1763214863884,0.006,96356.0,96355.0,0.04392]
[1763214864071,0.02313,96365.0,96364.0,0.04392]
[1763214864275,0.04533,96365.0,96364.0,0.04392]
[1763214864575,0.04533,96365.0,96360.0,0.00219803]
[1763214864775,0.03774,96333.0,96332.0,0.04392]
[1763214864967,0.03774,96331.0,96330.0,0.04465267]
[1763214865372,0.37967,96336.0,96335.0,0.04392]
[1763214865679,0.39854,96336.0,96335.0,0.04392]
[1763214866167,0.01887,96336.0,96330.0,0.00173267]
[1763214866373,0.01887,96336.0,96335.0,0.04392]
[1763214866573,0.03774,96336.0,96335.0,0.04392]
[1763214866775,0.39854,96336.0,96335.0,0.001]
[1763214867780,0.03774,96327.0,96326.0,0.00015568]
[1763214867981,0.39854,96327.0,96326.0,0.00015568]
[1763214868476,0.03774,96313.0,96312.0,0.04238982]
[1763214868677,0.39854,96313.0,96312.0,0.04238982]
[1763214868878,0.39854,96313.0,96312.0,0.00012982]
[1763214869584,0.39854,96313.0,96312.0,0.00112982]
[1763214869773,0.03774,96304.0,96303.0,0.00015568]
[1763214869977,0.39854,96304.0,96303.0,0.00015568]
[1763214870670,0.39854,96304.0,96280.0,0.04968737]
[1763214870671,0.50503803,96300.0,96280.0,0.01351]
[1763214870978,0.3608,96281.0,96270.0,0.01351]
[1763214871181,0.3608,96271.0,96270.0,0.01351]
[1763214871878,0.3598,96271.0,96270.0,0.01351]
[1763214872088,0.00219803,96270.0,96261.0,0.00015576]
[1763214872279,0.3608,96262.0,96261.0,0.02137576]
[1763214873378,0.3608,96262.0,96261.0,0.04241576]
[1763214876780,0.3608,96262.0,96261.0,0.02137576]
[1763214876980,0.3608,96262.0,96261.0,0.00015576]
[1763214877183,0.36090245,96262.0,96261.0,0.00015576]
[1763214877381,0.00219803,96260.0,96255.0,0.00467506]
[1763214877578,0.36299803,96260.0,96255.0,0.00467506]
[1763214878986,0.36090245,96262.0,96260.0,0.103953]
[1763214879196,0.00010245,96262.0,96261.0,0.40306]
[1763214879378,0.00015576,96280.0,96279.0,0.04226]
[1763214880991,0.00235379,96280.0,96279.0,0.04226]
[1763214881489,0.00015576,96280.0,96279.0,0.04226]
[1763214883792,0.00015576,96280.0,96279.0,0.04326]
[1763214884890,0.00015576,96280.0,96279.0,0.04426]
[1763214885190,0.00015576,96280.0,96279.0,0.04326]
[1763214886290,0.00015576,96280.0,96279.0,0.04426]
[1763214886888,0.00015576,96280.0,96279.0,0.04326]
[1763214887479,0.00015576,96280.0,96279.0,0.04226]
[1763214893190,0.00015576,96280.0,96279.0,0.07905854]
[1763214893787,0.00015576,96280.0,96279.0,0.04226]
[1763214901397,0.00223348,96280.0,96279.0,0.02122]
[1763214902191,0.00223348,96280.0,96272.0,0.01351]
[1763214902192,0.00223348,96280.0,96276.0,0.05557573]
[1763214902706,0.00223348,96280.0,96277.0,0.03705883]
[1763214903399,0.00223348,96280.0,96275.0,0.03705883]
[1763214903591,0.10607348,96280.0,96279.0,0.02779622]
[1763214903898,0.50607348,96280.0,96279.0,0.02779622]
[1763214904104,0.00223348,96280.0,96271.0,0.03705883]
[1763214904293,0.3608,96272.0,96270.0,0.03721459]
[1763214904796,0.3608,96272.0,96270.0,0.00015576]
[1763214905096,0.3608,96272.0,96260.0,0.06908573]
[1763214905097,0.3608,96272.0,96260.0,0.01351]
[1763214905291,0.3608,96261.0,96260.0,0.01351]
[1763214905797,0.00219803,96260.0,96255.0,0.07376079]
[1763214905994,0.00219803,96260.0,96255.0,0.01818506]
[1763214906896,0.00219803,96260.0,96255.0,0.01918506]
[1763214908207,0.00219803,96260.0,96255.0,0.06428506]
[1763214910598,0.00219803,96260.0,96259.0,0.0441]
[1763214911602,0.33803615,96261.0,96260.0,0.04552803]
[1763214913299,3.545e-05,96280.0,96279.0,0.0433]
[1763214913503,0.00076812,96280.0,96279.0,0.0433]
[1763214915511,3.545e-05,96280.0,96279.0,0.0433]
[1763214917201,0.3608,96292.0,96274.0,0.3608]
[1763214917202,0.3608,96292.0,96291.0,0.05654]
[1763214918102,0.3608,96292.0,96291.0,0.03497]
[1763214918299,0.3618,96292.0,96291.0,0.03497]
[1763214918896,0.3618,96292.0,96291.0,0.05654]
[1763214919501,0.3628,96292.0,96291.0,0.05654]
[1763214925408,0.3628,96292.0,96291.0,0.01324]
[1763214925600,0.3628,96292.0,96291.0,0.03497]
[1763214927208,0.3628,96292.0,96291.0,0.01324]
[1763214928109,0.00073267,96290.0,96282.0,0.01324]
[1763214928304,0.3608,96283.0,96282.0,0.01324]
[1763214929903,0.00073267,96280.0,96273.0,0.03595]
[1763214930105,0.3608,96274.0,96273.0,0.03595]
[1763214930410,0.3608,96274.0,96273.0,0.01324]
[1763214930809,0.3608,96274.0,96273.0,0.03595]
[1763214934300,0.3608,96274.0,96273.0,0.05713]
[1763214941520,0.40549,96293.0,96292.0,0.02118]
[1763214941707,0.05554,96278.0,96277.0,0.09946573]
[1763214941909,0.04469,96278.0,96277.0,0.04389]
[1763214943015,0.04469,96278.0,96277.0,0.09946573]
[1763214943320,0.04469,96278.0,96277.0,0.04389]
[1763214945818,0.02235,96278.0,96277.0,0.04389]
[1763214946318,0.00073267,96280.0,96279.0,0.04389]
[1763214946518,0.02308267,96280.0,96279.0,0.40469]
[1763214946919,0.04542267,96280.0,96279.0,0.40469]
[1763214950122,0.00073267,96280.0,96279.0,0.40469]
[1763214950522,0.04542267,96280.0,96279.0,0.40469]
[1763214951120,0.00073267,96280.0,96279.0,0.40469]
[1763214952824,0.00073267,96280.0,96279.0,0.46034723]
[1763214953415,0.04542267,96280.0,96279.0,0.46034723]
[1763214953622,0.04542267,96280.0,96279.0,0.40469]
[1763214953923,0.04542267,96280.0,96279.0,0.38351]
[1763214954123,0.04542267,96280.0,96279.0,0.04389]
[1763214954925,0.04542267,96280.0,96279.0,0.08099847]
[1763214956724,0.04542267,96280.0,96279.0,0.08100175]
[1763214959024,0.04542267,96280.0,96279.0,0.04389]
[1763214959226,0.04542267,96280.0,96279.0,0.08100175]
[1763214959628,0.04542267,96280.0,96279.0,0.04389]
[1763214960028,0.04542267,96280.0,96279.0,0.08100175]
[1763214960728,0.04542267,96280.0,96279.0,0.04389]
[1763214960927,0.04542267,96280.0,96279.0,0.08100175]
[1763214961127,0.04542267,96280.0,96279.0,0.04389]
[1763214961328,0.04542267,96280.0,96279.0,0.08100175]
[1763214961722,0.04542267,96280.0,96279.0,0.04389]
[1763214961932,0.04542267,96280.0,96279.0,0.08100175]
[1763214962119,0.04542267,96280.0,96277.0,0.03711175]
[1763214962120,0.04527,96279.0,96277.0,0.03711175]
[1763214962325,0.00073267,96280.0,96276.0,0.03711175]
[1763214962326,0.04527,96278.0,96276.0,0.03711175]
[1763214962524,0.04527,96274.0,96273.0,0.03711175]
[1763214962719,0.04527,96272.0,96271.0,0.46158723]
[1763214963023,0.04527,96272.0,96271.0,0.40593]
[1763214963220,0.04527,96272.0,96271.0,0.46158723]
[1763214963423,0.04527,96272.0,96271.0,0.40593]
[1763214964219,0.04527,96272.0,96271.0,0.46158723]
[1763214965428,0.04527,96272.0,96271.0,0.40593]
[1763214965828,0.04542576,96281.0,96280.0,0.04513]
[1763214966025,0.04542576,96281.0,96280.0,0.04732803]
[1763214966327,0.00015576,96281.0,96280.0,0.04732803]
[1763214967331,0.00015576,96281.0,96280.0,0.40812803]
[1763214969437,0.0712821,96300.0,96280.0,0.40812803]
[1763214969438,0.04527,96300.0,96299.0,0.04513]
[1763214969637,0.04600267,96300.0,96299.0,0.05837]
[1763214970035,0.04600267,96300.0,96299.0,0.04513]
[1763214970738,0.04700267,96300.0,96299.0,0.04513]
[1763214971634,0.04800267,96300.0,96299.0,0.04513]
[1763214972834,0.04800267,96300.0,96299.0,0.05874]
[1763214975529,0.00273267,96300.0,96299.0,0.09587724]
[1763214977337,0.002,96300.0,96299.0,0.05874]
[1763214977541,0.00015576,96309.0,96308.0,0.04474]
[1763214978637,0.02268576,96309.0,96308.0,0.04474]
[1763214978838,0.00215576,96309.0,96308.0,0.04474]
[1763214979236,0.00215576,96309.0,96308.0,0.40554]
[1763214979741,0.00315576,96309.0,96308.0,0.40554]
[1763214980040,0.00315576,96309.0,96308.0,0.44260399]
[1763214980236,0.00315576,96309.0,96308.0,0.40554]
[1763214983344,0.00025954,96326.0,96308.0,0.40554]
[1763214983345,0.04417954,96326.0,96325.0,0.04474]
[1763214983641,0.00025954,96326.0,96325.0,0.04474]
[1763214983837,0.00025954,96326.0,96325.0,0.40554]
[1763214984042,0.02278954,96326.0,96325.0,0.40554]
[1763214984442,0.02478954,96326.0,96325.0,0.40554]
[1763214984637,0.00225954,96326.0,96325.0,0.40554]
[1763214985945,0.02478954,96326.0,96325.0,0.40554]
[1763214986543,0.02478954,96326.0,96320.0,0.00219803]
[1763214986544,0.04392,96321.0,96320.0,0.02524803]
[1763214986744,0.04392,96321.0,96320.0,0.00219803]
[1763214986948,0.04392,96317.0,96305.0,0.3608]
[1763214987143,0.04392,96317.0,96310.0,0.00219803]
[1763214988047,0.04492,96317.0,96310.0,0.00219803]
[1763214988845,0.04358,96298.0,96297.0,0.3608]
[1763214989444,0.04358,96298.0,96297.0,0.38356]
[1763214989644,0.04358,96298.0,96297.0,0.40605]
[1763214990239,0.04358,96298.0,96297.0,0.04525]
[1763214990438,0.01162,96299.0,96288.0,0.00015576]
[1763214990439,0.04358,96289.0,96288.0,0.04540576]
[1763214990644,0.04358,96289.0,96288.0,0.02291576]
[1763214991145,0.04358,96289.0,96288.0,0.00015576]
[1763214991347,0.04358,96289.0,96288.0,0.04540576]
[1763214993452,0.04358,96276.0,96274.0,0.03706399]
[1763214993655,0.04358,96271.0,96270.0,0.04744803]
[1763214995552,0.02132,96275.0,96274.0,0.04525]
[1763214995951,0.04358,96275.0,96274.0,0.04525]
[1763214997251,0.04373576,96280.0,96279.0,0.04525]
[1763214997549,0.04446843,96280.0,96279.0,0.04525]
[1763214998158,0.04446843,96280.0,96279.0,0.40605]
[1763214998354,0.00015576,96280.0,96279.0,0.40605]
[1763214999546,0.14385163,96300.0,96299.0,0.04525]
[1763214999742,0.04431267,96300.0,96299.0,0.04525]
[1763215005279,0.04358,96291.0,96290.0,0.00015576]
[1763215007567,0.04558,96291.0,96290.0,0.00015576]
[1763215008270,0.04458,96291.0,96290.0,0.00015576]
[1763215008574,0.04558,96291.0,96290.0,0.00015576]
[1763215010976,0.04358,96279.0,96278.0,0.37105]
[1763215011176,0.04358,96273.0,96272.0,0.02276]
[1763215011375,0.3608,96283.0,96272.0,0.05854]
[1763215011578,0.3608,96283.0,96282.0,0.04525]
[1763215011579,0.40438,96283.0,96282.0,0.04525]
[1763215011975,0.04358,96271.0,96270.0,0.00219803]
[1763215012175,0.04358,96271.0,96264.0,0.05854]
[1763215012176,0.04358,96265.0,96264.0,0.05854]
[1763215015678,0.02132,96265.0,96264.0,0.05854]
[1763215016782,0.40438,96271.0,96270.0,0.04525]
[1763215016982,0.25752778,96280.0,96279.0,0.04525]
[1763215017182,0.04431267,96280.0,96279.0,0.04525]
[1763215018085,0.04531267,96280.0,96279.0,0.04525]
[1763215019976,0.00073267,96280.0,96279.0,0.04525]
[1763215021491,0.00073267,96280.0,96279.0,0.08231399]
[1763215022177,0.3608,96291.0,96290.0,0.04392]
[1763215022374,0.3608,96291.0,96290.0,0.04611803]
[1763215022583,0.10697389,96300.0,96291.0,0.04392]
[1763215023782,0.04496576,96292.0,96291.0,0.04392]
[1763215025286,0.02267576,96292.0,96291.0,0.04392]
[1763215029191,0.04496576,96292.0,96291.0,0.04392]
[1763215033784,0.04596576,96292.0,96291.0,0.04392]
[1763215034388,0.04696576,96292.0,96291.0,0.04392]
[1763215034693,0.04707576,96292.0,96291.0,0.04392]
[1763215035090,0.04607576,96292.0,96291.0,0.04392]
[1763215036184,0.04507576,96292.0,96291.0,0.04392]
[1763215036390,0.04607576,96292.0,96291.0,0.04392]
[1763215037592,0.04707576,96292.0,96291.0,0.04392]
[1763215038388,0.00215576,96292.0,96291.0,0.04392]
[1763215038596,0.15189389,96310.0,96309.0,0.04297]
[1763215038791,0.02315267,96310.0,96309.0,0.04297]
[1763215039191,0.04565267,96310.0,96309.0,0.04297]
[1763215039692,0.03738363,96332.0,96324.0,0.04297]
[1763215039884,0.03738363,96340.0,96336.0,0.04297]
[1763215040089,0.05607545,96348.0,96347.0,0.04297]
[1763215040090,0.04492,96348.0,96347.0,0.04297]
[1763215040292,0.06773181,96348.0,96347.0,0.04297]
[1763215040486,0.04538757,96348.0,96347.0,0.04297]
[1763215040697,0.38337576,96348.0,96347.0,0.04297]
[1763215040899,0.36095576,96348.0,96347.0,0.04297]
[1763215041093,0.00015576,96348.0,96347.0,0.04297]
[1763215041792,0.04507576,96348.0,96347.0,0.04297]
[1763215041997,0.04507576,96348.0,96341.0,0.05643]
[1763215041998,0.04492,96342.0,96341.0,0.05643]
[1763215042497,0.04492,96342.0,96341.0,0.08408088]
[1763215042797,0.04492,96342.0,96341.0,0.05643]
[1763215043790,0.00015576,96348.0,96341.0,0.05643]
[1763215043791,0.04507576,96348.0,96347.0,0.04297]
[1763215043999,0.00015576,96348.0,96347.0,0.40377]
[1763215044394,0.3608,96374.0,96364.0,0.04297]
[1763215044794,0.04532,96365.0,96364.0,0.04297]
[1763215046486,0.0004,96365.0,96364.0,0.04297]
[1763215046690,0.3608,96403.0,96395.0,0.04297]
[1763215046902,0.01277,96435.0,96395.0,0.04297]
[1763215046903,0.02742,96396.0,96395.0,0.04297]
[1763215047094,0.005,96396.0,96395.0,0.04297]
[1763215047602,0.005,96396.0,96395.0,0.40377]
[1763215047803,0.005,96396.0,96395.0,0.04297]
[1763215047994,0.005,96396.0,96395.0,0.40377]
[1763215049290,0.00015473,96405.0,96395.0,0.40377]
[1763215049291,0.04585473,96405.0,96404.0,0.04422]
[1763215049794,0.00015473,96405.0,96404.0,0.04422]
[1763215050193,0.04585473,96405.0,96404.0,0.04422]
[1763215050704,0.00015473,96405.0,96404.0,0.04422]
[1763215053805,0.4065,96434.0,96433.0,0.04422]
[1763215054407,0.3608,96434.0,96433.0,0.04422]
[1763215054809,0.0457,96431.0,96430.0,0.00219803]
[1763215055105,0.0457,96425.0,96424.0,0.00015559]
[1763215055407,0.4065,96425.0,96424.0,0.00015559]
[1763215055904,0.0457,96409.0,96408.0,0.05808]
[1763215056103,0.0457,96401.0,96400.0,0.05808]
[1763215056297,0.4065,96401.0,96400.0,0.04641803]
[1763215056605,0.0457,96391.0,96390.0,0.05808]
[1763215056801,0.4065,96391.0,96390.0,0.06027803]
[1763215057005,0.4065,96391.0,96390.0,0.04641803]
[1763215057207,0.4065,96391.0,96390.0,0.00219803]
[1763215057506,0.4065,96391.0,96381.0,0.01401559]
[1763215057507,0.0457,96382.0,96381.0,0.05823559]
[1763215057707,0.4065,96382.0,96381.0,0.05823559]
[1763215058403,0.3608,96382.0,96381.0,0.05823559]
[1763215058609,0.38339,96399.0,96390.0,0.02171]
[1763215058808,0.4065,96399.0,96398.0,0.02251]
[1763215059200,0.4065,96399.0,96381.0,0.01401559]
[1763215059400,0.0457,96391.0,96390.0,0.02470803]
[1763215059598,0.4065,96391.0,96390.0,0.02470803]
[1763215059805,0.4065,96391.0,96390.0,0.04641803]
[1763215060103,0.4065,96399.0,96390.0,0.00219803]
[1763215060305,0.3608,96399.0,96398.0,0.04422]
[1763215060909,0.0457,96394.0,96393.0,0.03637]
[1763215061510,0.0457,96394.0,96393.0,0.04422]
[1763215061906,0.0457,96394.0,96390.0,0.00219803]
[1763215062107,0.4065,96391.0,96390.0,0.02470803]
[1763215062310,0.4065,96391.0,96390.0,0.04641803]
[1763215062510,0.00015532,96400.0,96399.0,0.04422]
[1763215062511,0.40665532,96400.0,96399.0,0.04422]
[1763215063208,0.36095532,96400.0,96399.0,0.04422]
[1763215063509,0.00015532,96400.0,96399.0,0.04422]
[1763215067019,0.04585532,96400.0,96399.0,0.04422]
[1763215068720,0.0457,96394.0,96393.0,0.05808]
[1763215069223,0.0457,96394.0,96393.0,0.08569242]
[1763215069620,0.0457,96394.0,96393.0,0.05808]
[1763215069924,0.0457,96394.0,96393.0,0.02761242]
[1763215070122,0.0457,96391.0,96390.0,0.00219803]
[1763215070328,0.4065,96391.0,96390.0,0.00219803]
[1763215070715,0.0457,96384.0,96383.0,0.02251]
[1763215071224,0.0457,96382.0,96381.0,0.00015559]
[1763215071426,0.0457,96382.0,96381.0,0.02266559]
[1763215071627,0.0457,96382.0,96381.0,0.00015559]
[1763215072223,0.0457,96382.0,96381.0,0.02776867]
[1763215072727,0.0457,96382.0,96381.0,0.00015559]
[1763215072923,0.0457,96382.0,96381.0,0.02776867]
[1763215073126,0.0457,96382.0,96381.0,0.04437559]
[1763215073520,0.04585532,96400.0,96399.0,0.04422]
[1763215074223,0.0457,96391.0,96390.0,0.03689851]
[1763215074423,0.0457,96385.0,96384.0,0.03689851]
[1763215074620,0.0457,96382.0,96381.0,0.00015559]
[1763215074826,0.0457,96382.0,96381.0,0.08127227]
[1763215075123,0.0457,96382.0,96381.0,0.04437559]
[1763215075317,0.3608,96391.0,96390.0,0.04422]
[1763215075525,0.00015532,96400.0,96390.0,0.04641803]
[1763215075717,0.02259,96391.0,96390.0,0.04641803]
[1763215075922,0.0457,96391.0,96390.0,0.04641803]
[1763215076130,0.0457,96391.0,96390.0,0.08333319]
[1763215076334,0.0457,96391.0,96390.0,0.04641803]
[1763215077443,0.0457,96391.0,96390.0,0.08335063]
[1763215077625,0.0457,96391.0,96390.0,0.04641803]
[1763215078523,0.0457,96391.0,96390.0,0.00219803]
[1763215080534,0.0457,96391.0,96390.0,0.02382803]
[1763215081234,0.0457,96391.0,96390.0,0.00219803]
[1763215081430,0.00015532,96400.0,96390.0,0.00219803]
[1763215081732,0.00015532,96400.0,96399.0,0.04337]
[1763215081933,0.00015532,96400.0,96399.0,0.09907586]
[1763215082235,0.00015532,96400.0,96399.0,0.04337]
[1763215083528,0.3608,96425.0,96405.0,0.04337]
[1763215084134,0.3608,96425.0,96405.0,0.09874568]
[1763215084826,0.3608,96425.0,96405.0,0.04337]
[1763215085031,0.3608,96425.0,96405.0,0.09875249]
[1763215085233,0.3608,96425.0,96405.0,0.04337]
[1763215086027,0.04525932,96406.0,96405.0,0.05539618]
[1763215086227,0.04525932,96406.0,96400.0,0.00219803]
[1763215086228,0.045,96401.0,96400.0,0.02382803]
[1763215086636,0.045,96401.0,96400.0,0.00219803]
[1763215086934,0.045,96401.0,96400.0,0.03914238]
[1763215088033,0.045,96401.0,96400.0,0.08251238]
[1763215088434,0.045,96401.0,96400.0,0.04556803]
[1763215088624,0.045,96401.0,96400.0,0.00219803]
[1763215089733,0.045,96396.0,96395.0,0.03694435]
[1763215090537,0.045,96393.0,96392.0,0.03694435]
[1763215090732,0.4058,96393.0,96392.0,0.03694435]
[1763215091033,0.045,96392.0,96391.0,0.05857435]
[1763215091335,0.045,96392.0,96390.0,0.03694435]
[1763215091531,0.04376,96391.0,96390.0,0.03694435]
[1763215091737,0.04376,96384.0,96383.0,0.05948435]
[1763215091939,0.40456,96384.0,96383.0,0.05948435]
[1763215092133,0.40456,96384.0,96382.0,0.03694435]
[1763215092342,0.04376,96382.0,96381.0,0.03709994]
[1763215092733,0.04376,96382.0,96381.0,0.00015559]
[1763215099036,0.3608,96384.0,96383.0,0.04528]
[1763215099037,0.38342,96384.0,96383.0,0.04528]
[1763215099236,0.40456,96384.0,96383.0,0.04528]
[1763215099438,0.0188288,96384.0,96383.0,0.04528]
[1763215099639,0.0317088,96384.0,96383.0,0.04528]
[1763215099845,0.38656,96392.0,96391.0,0.04528]
[1763215100043,0.38656,96392.0,96390.0,0.01615803]
[1763215100240,0.02576,96391.0,96390.0,0.01615803]
[1763215101137,0.02576,96391.0,96390.0,0.06143803]
[1763215102038,0.04875543,96391.0,96390.0,0.06143803]
[1763215102637,0.01288,96391.0,96390.0,0.06143803]
[1763215102847,0.04871517,96402.0,96390.0,0.06143803]
[1763215102848,0.07447517,96402.0,96401.0,0.02254]
[1763215103047,0.09746944,96402.0,96401.0,0.04528]
[1763215105045,0.09746944,96402.0,96400.0,0.00219803]
[1763215105046,0.02576,96401.0,96400.0,0.00219803]
[1763215105240,0.02576,96382.0,96381.0,0.05939559]
[1763215105943,0.3608,96388.0,96387.0,0.04528]
[1763215106148,0.3608,96403.0,96390.0,0.00219803]
[1763215106447,0.02299524,96402.0,96390.0,0.01615803]
[1763215106645,0.01288,96391.0,96390.0,0.06143803]
[1763215106848,0.03587524,96391.0,96390.0,0.06143803]
[1763215107936,0.01288,96391.0,96390.0,0.06143803]
[1763215108645,0.3608,96394.0,96393.0,0.0447]
[1763215108845,0.39667493,96394.0,96393.0,0.0447]
[1763215109050,0.40955493,96394.0,96393.0,0.0447]
[1763215110754,0.02576,96382.0,96381.0,0.03617559]
[1763215111157,0.00494524,96382.0,96381.0,0.03617559]
[1763215111453,0.00494524,96382.0,96381.0,0.05833559]
[1763215113256,0.36574524,96382.0,96381.0,0.05833559]
[1763215116164,0.38877661,96382.0,96381.0,0.05833559]
[1763215118267,0.3608,96394.0,96393.0,0.04422]
[1763215118562,0.3838377,96394.0,96393.0,0.04422]
[1763215120064,0.35890846,96394.0,96393.0,0.04422]
[1763215120662,0.0230377,96394.0,96393.0,0.04422]
[1763215123368,0.00025932,96406.0,96405.0,0.04422]
[1763215123573,0.02329258,96406.0,96405.0,0.04422]
[1763215129266,0.02329258,96406.0,96400.0,0.01518803]
[1763215129579,0.02303326,96405.0,96400.0,0.03724803]
[1763215129875,0.02303326,96405.0,96400.0,0.05940803]
[1763215130671,0.02303326,96405.0,96400.0,0.03505]
[1763215130876,0.02303326,96405.0,96392.0,0.05721]
[1763215131064,0.3608,96397.0,96392.0,0.05721]
[1763215131269,0.02303326,96396.0,96390.0,0.00219803]
[1763215131770,0.02303326,96396.0,96390.0,0.02425803]
[1763215132166,0.02303326,96396.0,96390.0,0.02206]
[1763215132370,0.02303326,96396.0,96390.0,0.02425803]
[1763215133069,0.02303326,96396.0,96390.0,0.04641803]
[1763215133874,0.02303326,96396.0,96392.0,0.05721]
[1763215136581,0.02303326,96396.0,96395.0,0.04422]
[1763215137277,0.00025932,96406.0,96405.0,0.04422]
[1763215137478,0.02339285,96406.0,96405.0,0.04422]
[1763215141778,0.02339285,96406.0,96392.0,0.01299]
[1763215141779,0.02339285,96406.0,96392.0,0.05634]
[1763215141987,0.02339285,96406.0,96396.0,0.0435]
[1763215141988,0.3608,96397.0,96396.0,0.0435]
[1763215142282,0.38393353,96397.0,96396.0,0.02116]
[1763215142676,0.38393353,96397.0,96392.0,0.05634]